[Event "*** Titled Tuesday Blitz"]
[Site "Chess.com"]
[Date "2021.03.02"]
[Round "9"]
[White "PawnEatingZombie"]
[Black "losersgame"]
[Result "1/2-1/2"]
[WhiteElo "2211"]
[BlackElo "2319"]
[TimeControl "180+1"]
[EndTime "11:49:54 PST"]
[Termination "Game drawn by 50-move rule"]

1. d4 {[%clk 0:03:00.9]} 1... Nf6 {[%clk 0:02:58.6]} 2. c4 {[%clk 0:03:00.9]}
2... Nc6 {[%clk 0:02:58.4]} 3. Nf3 {[%clk 0:02:58.8]} 3... e6 {[%clk 0:02:58.5]}
4. Nc3 {[%clk 0:02:58.4]} 4... Bb4 {[%clk 0:02:58.6]} 5. Qc2 {[%clk 0:02:56.2]}
5... d6 {[%clk 0:02:58.1]} 6. Bd2 {[%clk 0:02:55.6]} 6... e5 {[%clk 0:02:47.3]}
7. d5 {[%clk 0:02:38.5]} 7... Bxc3 {[%clk 0:02:47]} 8. Bxc3 {[%clk 0:02:37.5]}
8... Nb8 {[%clk 0:02:41.4]} 9. e3 {[%clk 0:02:20.9]} 9... O-O {[%clk 0:02:38.1]}
10. Bd3 {[%clk 0:02:17.7]} 10... c6 {[%clk 0:02:31.5]} 11. dxc6 {[%clk
0:02:16.4]} 11... Nxc6 {[%clk 0:02:23.8]} 12. O-O-O {[%clk 0:02:13.8]} 12... Be6
{[%clk 0:02:21.9]} 13. Nxe5 {[%clk 0:02:04.7]} 13... dxe5 {[%clk 0:02:11.5]} 14.
Bxh7+ {[%clk 0:02:03.5]} 14... Nxh7 {[%clk 0:02:11.2]} 15. Rxd8 {[%clk
0:02:03.6]} 15... Rfxd8 {[%clk 0:02:10.8]} 16. f4 {[%clk 0:01:55]} 16... exf4
{[%clk 0:02:02.9]} 17. exf4 {[%clk 0:01:54.6]} 17... Nd4 {[%clk 0:02:02.4]} 18.
Bxd4 {[%clk 0:01:53.6]} 18... Rxd4 {[%clk 0:02:01.2]} 19. b3 {[%clk 0:01:51.1]}
19... Rxf4 {[%clk 0:01:40.9]} 20. Rd1 {[%clk 0:01:48.7]} 20... Nf6 {[%clk
0:01:31.9]} 21. Qd2 {[%clk 0:01:31.4]} 21... Re4 {[%clk 0:01:22.6]} 22. h3
{[%clk 0:01:26.6]} 22... Rc8 {[%clk 0:01:07.7]} 23. Kb2 {[%clk 0:01:23.4]} 23...
Re8 {[%clk 0:01:04.7]} 24. g4 {[%clk 0:01:22.5]} 24... Bxc4 {[%clk 0:01:03.7]}
25. Ka3 {[%clk 0:01:21.3]} 25... Be6 {[%clk 0:00:49]} 26. g5 {[%clk 0:01:21]}
26... Nd5 {[%clk 0:00:47.6]} 27. Qf2 {[%clk 0:01:14.9]} 27... a5 {[%clk
0:00:43.3]} 28. h4 {[%clk 0:01:12.9]} 28... Nb4 {[%clk 0:00:40.9]} 29. Rd2
{[%clk 0:01:10.1]} 29... Bg4 {[%clk 0:00:39.1]} 30. Qb6 {[%clk 0:01:03.4]} 30...
Re2 {[%clk 0:00:34.9]} 31. Rxe2 {[%clk 0:01:00]} 31... Rxe2 {[%clk 0:00:34.6]}
32. Qd8+ {[%clk 0:00:50.5]} 32... Kh7 {[%clk 0:00:33.3]} 33. Ka4 {[%clk
0:00:47.9]} 33... Rxa2+ {[%clk 0:00:28.3]} 34. Kb5 {[%clk 0:00:48]} 34... Be2+
{[%clk 0:00:26.3]} 35. Kb6 {[%clk 0:00:46.4]} 35... Rc2 {[%clk 0:00:20.9]} 36.
Qe7 {[%clk 0:00:36.4]} 36... Rc6+ {[%clk 0:00:18.6]} 37. Kxb7 {[%clk 0:00:35.4]}
37... Ba6+ {[%clk 0:00:17.6]} 38. Ka7 {[%clk 0:00:34.6]} 38... Rg6 {[%clk
0:00:14.8]} 39. Qe4 {[%clk 0:00:31.5]} 39... Kg8 {[%clk 0:00:12]} 40. Qe8+
{[%clk 0:00:30.7]} 40... Kh7 {[%clk 0:00:12.1]} 41. Qxf7 {[%clk 0:00:31.2]}
41... Bd3 {[%clk 0:00:11.9]} 42. Qf4 {[%clk 0:00:19.6]} 42... Re6 {[%clk
0:00:09.7]} 43. h5 {[%clk 0:00:17.6]} 43... Re8 {[%clk 0:00:06]} 44. g6+ {[%clk
0:00:17.1]} 44... Kh8 {[%clk 0:00:06.3]} 45. Qf7 {[%clk 0:00:14.4]} 45... Rg8
{[%clk 0:00:03.6]} 46. h6 {[%clk 0:00:13.7]} 46... Be4 {[%clk 0:00:03]} 47.
hxg7+ {[%clk 0:00:06.8]} 47... Rxg7 {[%clk 0:00:03.1]} 48. Kb6 {[%clk
0:00:05.2]} 48... Rxf7 {[%clk 0:00:02.9]} 49. gxf7 {[%clk 0:00:05.2]} 49... Kg7
{[%clk 0:00:03]} 50. Kxa5 {[%clk 0:00:05.9]} 50... Nd5 {[%clk 0:00:02.5]} 51. b4
{[%clk 0:00:04.5]} 51... Kxf7 {[%clk 0:00:02.8]} 52. b5 {[%clk 0:00:04.7]} 52...
Ke6 {[%clk 0:00:02.4]} 53. b6 {[%clk 0:00:05.6]} 53... Kd7 {[%clk 0:00:02.2]}
54. Ka6 {[%clk 0:00:05.2]} 54... Kc8 {[%clk 0:00:01.8]} 55. b7+ {[%clk
0:00:05.5]} 55... Kb8 {[%clk 0:00:01.9]} 56. Kb5 {[%clk 0:00:06]} 56... Kxb7
{[%clk 0:00:02.4]} 57. Kc5 {[%clk 0:00:06.9]} 57... Nc7 {[%clk 0:00:02.7]} 58.
Kd4 {[%clk 0:00:07.8]} 58... Bc6 {[%clk 0:00:03.3]} 59. Ke5 {[%clk 0:00:07.8]}
59... Kb6 {[%clk 0:00:04.2]} 60. Kd4 {[%clk 0:00:07.4]} 60... Kb5 {[%clk
0:00:04.7]} 61. Ke5 {[%clk 0:00:07.8]} 61... Na6 {[%clk 0:00:05.2]} 62. Kd6
{[%clk 0:00:07.9]} 62... Nb4 {[%clk 0:00:04.7]} 63. Ke5 {[%clk 0:00:07.8]} 63...
Kc5 {[%clk 0:00:05.2]} 64. Ke6 {[%clk 0:00:07.5]} 64... Bd5+ {[%clk 0:00:06]}
65. Ke5 {[%clk 0:00:07.4]} 65... Nd3+ {[%clk 0:00:06.5]} 66. Kf5 {[%clk
0:00:06.6]} 66... Kd4 {[%clk 0:00:07.2]} 67. Kf6 {[%clk 0:00:06.4]} 67... Nc5
{[%clk 0:00:07.8]} 68. Kf5 {[%clk 0:00:05.8]} 68... Nd7 {[%clk 0:00:07.2]} 69.
Kg5 {[%clk 0:00:05]} 69... Ke5 {[%clk 0:00:07.8]} 70. Kg6 {[%clk 0:00:05.2]}
70... Be6 {[%clk 0:00:08]} 71. Kh7 {[%clk 0:00:04.9]} 71... Kf6 {[%clk
0:00:08.4]} 72. Kh6 {[%clk 0:00:04.5]} 72... Nf8 {[%clk 0:00:08.4]} 73. Kh5
{[%clk 0:00:03.6]} 73... Bf5 {[%clk 0:00:07.9]} 74. Kh6 {[%clk 0:00:03.8]} 74...
Ng6 {[%clk 0:00:07]} 75. Kh7 {[%clk 0:00:03.6]} 75... Ne7+ {[%clk 0:00:06.6]}
76. Kh8 {[%clk 0:00:03.8]} 76... Be6 {[%clk 0:00:06.1]} 77. Kh7 {[%clk
0:00:03.8]} 77... Kf7 {[%clk 0:00:06.3]} 78. Kh8 {[%clk 0:00:04.1]} 78... Ng6+
{[%clk 0:00:06.2]} 79. Kh7 {[%clk 0:00:04.4]} 79... Bd7 {[%clk 0:00:05.5]} 80.
Kh6 {[%clk 0:00:04.7]} 80... Kf6 {[%clk 0:00:05.9]} 81. Kh7 {[%clk 0:00:05]}
81... Be6 {[%clk 0:00:04.9]} 82. Kh6 {[%clk 0:00:05.3]} 82... Bg8 {[%clk
0:00:04.6]} 83. Kh5 {[%clk 0:00:04.9]} 83... Kf5 {[%clk 0:00:04.1]} 84. Kh6
{[%clk 0:00:05.4]} 84... Kf6 {[%clk 0:00:04]} 85. Kh5 {[%clk 0:00:05.7]} 85...
Ne5 {[%clk 0:00:04]} 86. Kh6 {[%clk 0:00:06.2]} 86... Ng4+ {[%clk 0:00:02.9]}
87. Kh5 {[%clk 0:00:06.5]} 87... Kf5 {[%clk 0:00:03.3]} 88. Kh4 {[%clk 0:00:06]}
88... Bf7 {[%clk 0:00:03.1]} 89. Kh3 {[%clk 0:00:05.9]} 89... Kf4 {[%clk
0:00:02.6]} 90. Kh4 {[%clk 0:00:06.4]} 90... Bg6 {[%clk 0:00:03]} 91. Kh3 {[%clk
0:00:06.4]} 91... Ne5 {[%clk 0:00:02.3]} 92. Kh4 {[%clk 0:00:06.5]} 92... Nf3+
{[%clk 0:00:02.6]} 93. Kh3 {[%clk 0:00:06.9]} 93... Bf5+ {[%clk 0:00:02.7]} 94.
Kg2 {[%clk 0:00:05.3]} 94... Bg4 {[%clk 0:00:01.5]} 95. Kf2 {[%clk 0:00:03.9]}
95... Nd4 {[%clk 0:00:01.6]} 96. Ke1 {[%clk 0:00:03.4]} 96... Ke3 {[%clk
0:00:01.9]} 97. Kf1 {[%clk 0:00:02.9]} 97... Kf3 {[%clk 0:00:01.3]} 98. Ke1
{[%clk 0:00:03]} 98... Ke3 {[%clk 0:00:01.8]} 99. Kf1 {[%clk 0:00:03.2]} 99...
Nc2 {[%clk 0:00:01.6]} 100. Kg2 {[%clk 0:00:03.2]} 100... Kf4 {[%clk 0:00:01.8]}
101. Kf2 {[%clk 0:00:03.3]} 101... Ke4 {[%clk 0:00:01.3]} 102. Kg3 {[%clk
0:00:02.3]} 102... Kf5 {[%clk 0:00:02]} 103. Kf2 {[%clk 0:00:02.4]} 103... Kf4
{[%clk 0:00:02.7]} 104. Kg2 {[%clk 0:00:02]} 104... Bf3+ {[%clk 0:00:02.6]} 105.
Kf2 {[%clk 0:00:02.4]} 105... Ke4 {[%clk 0:00:02.6]} 106. Kg3 {[%clk 0:00:02.4]}
106... Ke3 {[%clk 0:00:02.8]} 1/2-1/2

[Event "*** Titled Tuesday Blitz"]
[Site "Chess.com"]
[Date "2021.03.02"]
[Round "10"]
[White "AniJak"]
[Black "googlegoom"]
[Result "1-0"]
[WhiteElo "2337"]
[BlackElo "2453"]
[TimeControl "180+1"]
[EndTime "11:52:31 PST"]
[Termination "AniJak won by resignation"]

1. e4 {[%clk 0:03:00.9]} 1... c5 {[%clk 0:02:58.4]} 2. Nc3 {[%clk 0:03:00.6]}
2... Nc6 {[%clk 0:02:58.1]} 3. g3 {[%clk 0:03:01.1]} 3... g6 {[%clk 0:02:58]} 4.
Bg2 {[%clk 0:03:01.6]} 4... Bg7 {[%clk 0:02:58.7]} 5. d3 {[%clk 0:03:02]} 5...
e5 {[%clk 0:02:59.2]} 6. Nh3 {[%clk 0:03:01.6]} 6... Nge7 {[%clk 0:02:59.4]} 7.
O-O {[%clk 0:03:01.7]} 7... O-O {[%clk 0:02:58.5]} 8. f4 {[%clk 0:03:02]} 8...
d6 {[%clk 0:02:59]} 9. f5 {[%clk 0:03:02.2]} 9... gxf5 {[%clk 0:02:58.8]} 10.
exf5 {[%clk 0:03:02.5]} 10... Bxf5 {[%clk 0:02:56.1]} 11. Rxf5 {[%clk
0:03:02.3]} 11... Nxf5 {[%clk 0:02:55.7]} 12. Be4 {[%clk 0:03:02.5]} 12... Nfe7
{[%clk 0:02:49.7]} 13. Bxh7+ {[%clk 0:03:01.7]} 13... Kxh7 {[%clk 0:02:47.3]}
14. Qh5+ {[%clk 0:03:01.4]} 14... Kg8 {[%clk 0:02:42.9]} 15. Ng5 {[%clk
0:03:01.5]} 15... Re8 {[%clk 0:02:42.7]} 16. Qxf7+ {[%clk 0:03:00.4]} 16... Kh8
{[%clk 0:02:42.7]} 17. Qh5+ {[%clk 0:03:00.4]} 17... Kg8 {[%clk 0:02:42.5]} 18.
Qh7+ {[%clk 0:02:57.2]} 18... Kf8 {[%clk 0:02:42.5]} 19. Ne6+ {[%clk 0:02:57]}
1-0

[Event "*** Titled Tuesday Blitz"]
[Site "Chess.com"]
[Date "2021.03.02"]
[Round "10"]
[White "gisela_roque"]
[Black "Lyschko"]
[Result "0-1"]
[WhiteElo "1767"]
[BlackElo "2188"]
[TimeControl "180+1"]
[EndTime "11:53:45 PST"]
[Termination "Lyschko won by resignation"]

1. c4 {[%clk 0:01:39]} 1... e5 {[%clk 0:02:58.8]} 2. Nc3 {[%clk 0:01:38.2]} 2...
d6 {[%clk 0:02:58]} 3. Nf3 {[%clk 0:01:38]} 3... f5 {[%clk 0:02:57.7]} 4. d3
{[%clk 0:01:37.4]} 4... Nf6 {[%clk 0:02:56.5]} 5. g3 {[%clk 0:01:37.8]} 5... Be7
{[%clk 0:02:56.4]} 6. Bg2 {[%clk 0:01:38.2]} 6... O-O {[%clk 0:02:56.2]} 7. O-O
{[%clk 0:01:38.3]} 7... Qe8 {[%clk 0:02:55]} 8. Rb1 {[%clk 0:01:37.1]} 8... a5
{[%clk 0:02:53.6]} 9. a3 {[%clk 0:01:36.8]} 9... Qh5 {[%clk 0:02:52]} 10. Bg5
{[%clk 0:01:33.1]} 10... h6 {[%clk 0:02:44.2]} 11. Bxf6 {[%clk 0:01:32.1]} 11...
Bxf6 {[%clk 0:02:44.1]} 12. b4 {[%clk 0:01:29.4]} 12... axb4 {[%clk 0:02:42.6]}
13. axb4 {[%clk 0:01:28.1]} 13... e4 {[%clk 0:02:41.5]} 0-1

[Event "*** Titled Tuesday Blitz"]
[Site "Chess.com"]
[Date "2021.03.02"]
[Round "10"]
[White "Nikolaj_6"]
[Black "SanQui14"]
[Result "1-0"]
[WhiteElo "2664"]
[BlackElo "2385"]
[TimeControl "180+1"]
[EndTime "11:53:49 PST"]
[Termination "Nikolaj_6 won by resignation"]

1. e4 {[%clk 0:03:00.9]} 1... e6 {[%clk 0:02:52.5]} 2. d4 {[%clk 0:03:00.4]}
2... d5 {[%clk 0:02:52.1]} 3. Nc3 {[%clk 0:03:00.1]} 3... Bb4 {[%clk 0:02:51.2]}
4. e5 {[%clk 0:02:59.7]} 4... c5 {[%clk 0:02:51.4]} 5. a3 {[%clk 0:02:59.4]}
5... Bxc3+ {[%clk 0:02:51.7]} 6. bxc3 {[%clk 0:03:00.3]} 6... Qc7 {[%clk
0:02:52.4]} 7. h4 {[%clk 0:03:00]} 7... b6 {[%clk 0:02:48.1]} 8. h5 {[%clk
0:02:57]} 8... h6 {[%clk 0:02:48]} 9. Bb5+ {[%clk 0:02:55.2]} 9... Bd7 {[%clk
0:02:44.9]} 10. Bd3 {[%clk 0:02:54.9]} 10... Nc6 {[%clk 0:02:45.2]} 11. Nf3
{[%clk 0:02:51.1]} 11... Nge7 {[%clk 0:02:41]} 12. O-O {[%clk 0:02:48.6]} 12...
c4 {[%clk 0:02:41.3]} 13. Be2 {[%clk 0:02:47.7]} 13... O-O-O {[%clk 0:02:41.7]}
14. Nh4 {[%clk 0:02:45.5]} 14... Na5 {[%clk 0:02:38]} 15. a4 {[%clk 0:02:45.1]}
15... Kb8 {[%clk 0:02:37.4]} 16. Ba3 {[%clk 0:02:44.3]} 16... Bc6 {[%clk
0:02:29.1]} 17. Bd6 {[%clk 0:02:37.7]} 17... Rxd6 {[%clk 0:02:29.1]} 18. exd6
{[%clk 0:02:38.3]} 18... Qxd6 {[%clk 0:02:30]} 19. Re1 {[%clk 0:02:25.1]} 19...
Qd7 {[%clk 0:02:27.4]} 20. Qb1 {[%clk 0:02:06.6]} 20... Bxa4 {[%clk 0:02:25.9]}
21. Qb4 {[%clk 0:02:05]} 21... Bc6 {[%clk 0:02:22.7]} 22. Rxa5 {[%clk
0:02:03.1]} 1-0

[Event "*** Titled Tuesday Blitz"]
[Site "Chess.com"]
[Date "2021.03.02"]
[Round "10"]
[White "ukchessbomber"]
[Black "JulianProleiko"]
[Result "0-1"]
[WhiteElo "2536"]
[BlackElo "2449"]
[TimeControl "180+1"]
[EndTime "11:54:11 PST"]
[Termination "JulianProleiko won by resignation"]

1. d4 {[%clk 0:03:00.9]} 1... Nf6 {[%clk 0:02:56.4]} 2. e3 {[%clk 0:02:59.4]}
2... d5 {[%clk 0:02:54.9]} 3. Bd3 {[%clk 0:02:59.5]} 3... c5 {[%clk 0:02:54.9]}
4. Ne2 {[%clk 0:03:00.4]} 4... Nc6 {[%clk 0:02:54.3]} 5. c3 {[%clk 0:03:00.4]}
5... e5 {[%clk 0:02:54.2]} 6. dxc5 {[%clk 0:02:59.8]} 6... Bxc5 {[%clk
0:02:52.8]} 7. O-O {[%clk 0:03:00.3]} 7... e4 {[%clk 0:02:51.1]} 8. Bc2 {[%clk
0:03:00.1]} 8... Be6 {[%clk 0:02:45.9]} 9. Nf4 {[%clk 0:02:59.7]} 9... O-O
{[%clk 0:02:32.7]} 10. b4 {[%clk 0:02:57.9]} 10... Bd6 {[%clk 0:02:32.7]} 11.
Nxe6 {[%clk 0:02:58.1]} 11... fxe6 {[%clk 0:02:32.1]} 12. h3 {[%clk 0:02:59]}
12... Qe8 {[%clk 0:02:25.2]} 13. f3 {[%clk 0:02:57.5]} 13... Qg6 {[%clk
0:02:21]} 14. f4 {[%clk 0:02:48.1]} 14... e5 {[%clk 0:02:13.1]} 15. f5 {[%clk
0:02:39.4]} 15... Qg3 {[%clk 0:02:08.4]} 16. Bxe4 {[%clk 0:02:35.2]} 16... Kh8
{[%clk 0:01:44]} 17. Bxd5 {[%clk 0:02:31.3]} 17... e4 {[%clk 0:01:42.9]} 18.
Bxc6 {[%clk 0:02:22.9]} 18... Qh2+ {[%clk 0:01:34.1]} 19. Kf2 {[%clk 0:02:23.2]}
19... Bg3+ {[%clk 0:01:34]} 20. Ke2 {[%clk 0:02:23.8]} 20... Qxg2+ {[%clk
0:01:34.1]} 0-1

[Event "*** Titled Tuesday Blitz"]
[Site "Chess.com"]
[Date "2021.03.02"]
[Round "10"]
[White "VladimirBugayev"]
[Black "Joseacorrea"]
[Result "1-0"]
[WhiteElo "2299"]
[BlackElo "2078"]
[TimeControl "180+1"]
[EndTime "11:54:28 PST"]
[Termination "VladimirBugayev won by resignation"]

1. e4 {[%clk 0:03:00.9]} 1... c5 {[%clk 0:02:59.3]} 2. Nc3 {[%clk 0:02:58.9]}
2... Nc6 {[%clk 0:02:59.2]} 3. Bb5 {[%clk 0:02:58.5]} 3... g6 {[%clk 0:02:56.6]}
4. Bxc6 {[%clk 0:02:57.4]} 4... bxc6 {[%clk 0:02:56.9]} 5. f4 {[%clk 0:02:57.8]}
5... Bg7 {[%clk 0:02:57]} 6. Nf3 {[%clk 0:02:57.9]} 6... e6 {[%clk 0:02:54.7]}
7. O-O {[%clk 0:02:40.2]} 7... Ba6 {[%clk 0:02:53]} 8. d3 {[%clk 0:02:39]} 8...
Ne7 {[%clk 0:02:43]} 9. e5 {[%clk 0:02:23]} 9... d5 {[%clk 0:02:37.3]} 10. exd6
{[%clk 0:02:21.1]} 10... Qxd6 {[%clk 0:02:23.5]} 11. Ne4 {[%clk 0:02:19.7]}
11... Qd5 {[%clk 0:02:13.2]} 12. c4 {[%clk 0:02:14.7]} 12... Qh5 {[%clk
0:01:49]} 13. Qa4 {[%clk 0:01:52]} 13... Bb7 {[%clk 0:01:44.6]} 14. Nd6+ {[%clk
0:01:51.3]} 1-0

[Event "*** Titled Tuesday Blitz"]
[Site "Chess.com"]
[Date "2021.03.02"]
[Round "10"]
[White "Msb2"]
[Black "seorobert1971"]
[Result "1-0"]
[WhiteElo "2895"]
[BlackElo "2668"]
[TimeControl "180+1"]
[EndTime "11:54:42 PST"]
[Termination "Msb2 won by checkmate"]

1. d4 {[%clk 0:03:00.9]} 1... c6 {[%clk 0:02:59.7]} 2. c4 {[%clk 0:02:57.1]}
2... d5 {[%clk 0:02:59.3]} 3. Nc3 {[%clk 0:02:57.8]} 3... Nf6 {[%clk 0:02:58.1]}
4. e3 {[%clk 0:02:57.4]} 4... e6 {[%clk 0:02:52.1]} 5. Nf3 {[%clk 0:02:55.1]}
5... Nbd7 {[%clk 0:02:47.6]} 6. Bd3 {[%clk 0:02:55.6]} 6... dxc4 {[%clk
0:02:46.1]} 7. Bxc4 {[%clk 0:02:56.5]} 7... b5 {[%clk 0:02:45.5]} 8. Bb3 {[%clk
0:02:57]} 8... Bb7 {[%clk 0:02:35.9]} 9. O-O {[%clk 0:02:53.3]} 9... a6 {[%clk
0:02:35]} 10. e4 {[%clk 0:02:30.3]} 10... b4 {[%clk 0:02:34.4]} 11. Na4 {[%clk
0:02:19.7]} 11... Nxe4 {[%clk 0:02:33.1]} 12. Re1 {[%clk 0:02:20.3]} 12... Nef6
{[%clk 0:02:32.3]} 13. Ng5 {[%clk 0:02:18.4]} 13... Be7 {[%clk 0:02:20.9]} 14.
Bxe6 {[%clk 0:02:16.3]} 14... fxe6 {[%clk 0:02:15]} 15. Nxe6 {[%clk 0:02:17.2]}
15... Qa5 {[%clk 0:02:14.9]} 16. Nac5 {[%clk 0:02:04.1]} 16... Nxc5 {[%clk
0:02:06.5]} 17. dxc5 {[%clk 0:02:02.9]} 17... Kf7 {[%clk 0:02:01]} 18. Ng5+
{[%clk 0:02:01.7]} 18... Kf8 {[%clk 0:01:59.8]} 19. Rxe7 {[%clk 0:01:52.4]}
19... Kxe7 {[%clk 0:01:45.2]} 20. Qd6+ {[%clk 0:01:50.8]} 20... Ke8 {[%clk
0:01:44.4]} 21. Qe6+ {[%clk 0:01:51.3]} 21... Kd8 {[%clk 0:01:44.6]} 22. Nf7+
{[%clk 0:01:51.9]} 22... Kc7 {[%clk 0:01:44.6]} 23. Bf4# {[%clk 0:01:52.5]} 1-0

[Event "*** Titled Tuesday Blitz"]
[Site "Chess.com"]
[Date "2021.03.02"]
[Round "10"]
[White "HanSchut"]
[Black "LogoCzar"]
[Result "0-1"]
[WhiteElo "2223"]
[BlackElo "2338"]
[TimeControl "180+1"]
[EndTime "11:55:12 PST"]
[Termination "LogoCzar won by resignation"]

1. e4 {[%clk 0:03:00.9]} 1... e5 {[%clk 0:02:58.6]} 2. Nf3 {[%clk 0:03:00.9]}
2... Nc6 {[%clk 0:02:59]} 3. Bc4 {[%clk 0:03:01.4]} 3... Nf6 {[%clk 0:02:59.2]}
4. d4 {[%clk 0:03:01.5]} 4... exd4 {[%clk 0:02:59.2]} 5. e5 {[%clk 0:03:02.4]}
5... d5 {[%clk 0:02:59.4]} 6. Bb5 {[%clk 0:03:02.8]} 6... Nd7 {[%clk 0:02:59.4]}
7. O-O {[%clk 0:02:59.2]} 7... Be7 {[%clk 0:02:59.1]} 8. Re1 {[%clk 0:02:54.2]}
8... O-O {[%clk 0:02:58]} 9. Bxc6 {[%clk 0:02:54.7]} 9... bxc6 {[%clk
0:02:58.9]} 10. Nxd4 {[%clk 0:02:55.1]} 10... Nb8 {[%clk 0:02:59.4]} 11. Qf3
{[%clk 0:02:53.6]} 11... a5 {[%clk 0:02:56.8]} 12. c4 {[%clk 0:02:20.5]} 12...
dxc4 {[%clk 0:02:54.7]} 13. Nxc6 {[%clk 0:02:14.2]} 13... Nxc6 {[%clk
0:02:46.4]} 14. Qxc6 {[%clk 0:02:15.1]} 14... Ra6 {[%clk 0:02:41.7]} 15. Qxc4
{[%clk 0:02:11.9]} 15... Rg6 {[%clk 0:02:41.1]} 16. Nc3 {[%clk 0:02:05.8]} 16...
Bb7 {[%clk 0:02:40.9]} 17. g3 {[%clk 0:02:01.9]} 17... Qd7 {[%clk 0:02:40.4]}
18. Bf4 {[%clk 0:01:49.4]} 18... Qh3 {[%clk 0:02:38.7]} 19. Qf1 {[%clk
0:01:31.1]} 19... Qg4 {[%clk 0:02:36.7]} 20. Qd3 {[%clk 0:00:49]} 20... Qxf4
{[%clk 0:02:26.1]} 21. Qxg6 {[%clk 0:00:45.7]} 21... Qf3 {[%clk 0:02:25.6]} 0-1

[Event "*** Titled Tuesday Blitz"]
[Site "Chess.com"]
[Date "2021.03.02"]
[Round "10"]
[White "AntonovaNadezhda"]
[Black "Trickster_Pony"]
[Result "1-0"]
[WhiteElo "2127"]
[BlackElo "1460"]
[TimeControl "180+1"]
[EndTime "11:55:18 PST"]
[Termination "AntonovaNadezhda won by resignation"]

1. d4 {[%clk 0:03:00.4]} 1... Nf6 {[%clk 0:02:58.5]} 2. Nf3 {[%clk 0:03:00.7]}
2... c5 {[%clk 0:02:52.1]} 3. e3 {[%clk 0:02:59.4]} 3... d5 {[%clk 0:02:42.4]}
4. Nbd2 {[%clk 0:02:54.1]} 4... Nc6 {[%clk 0:02:40.6]} 5. c3 {[%clk 0:02:53.5]}
5... e6 {[%clk 0:02:39.9]} 6. Bd3 {[%clk 0:02:52.2]} 6... cxd4 {[%clk
0:02:27.4]} 7. exd4 {[%clk 0:02:50.8]} 7... Bd6 {[%clk 0:02:23.5]} 8. O-O {[%clk
0:02:50.4]} 8... O-O {[%clk 0:02:22.7]} 9. Re1 {[%clk 0:02:50.3]} 9... Qc7
{[%clk 0:02:21.2]} 10. Qe2 {[%clk 0:02:48.7]} 10... Re8 {[%clk 0:02:11.9]} 11.
Ne5 {[%clk 0:02:47.7]} 11... Be7 {[%clk 0:01:50.9]} 12. Ndf3 {[%clk 0:02:43]}
12... Nxe5 {[%clk 0:01:43.8]} 13. Nxe5 {[%clk 0:02:42.1]} 13... Nd7 {[%clk
0:01:28.6]} 14. Bxh7+ {[%clk 0:02:38.6]} 14... Kf8 {[%clk 0:01:14.2]} 15. Bd3
{[%clk 0:02:21.7]} 15... Nxe5 {[%clk 0:01:12.5]} 16. dxe5 {[%clk 0:02:19.8]}
16... a6 {[%clk 0:01:00.7]} 17. Qh5 {[%clk 0:02:17.5]} 17... Bc5 {[%clk
0:00:54.1]} 18. Bg5 {[%clk 0:02:15.6]} 18... Kg8 {[%clk 0:00:41.1]} 19. Qh7+
{[%clk 0:02:12.6]} 1-0

[Event "*** Titled Tuesday Blitz"]
[Site "Chess.com"]
[Date "2021.03.02"]
[Round "10"]
[White "NaciSAN"]
[Black "campomania3"]
[Result "1-0"]
[WhiteElo "2293"]
[BlackElo "2153"]
[TimeControl "180+1"]
[EndTime "11:55:24 PST"]
[Termination "NaciSAN won by resignation"]

1. e4 {[%clk 0:03:00.9]} 1... c6 {[%clk 0:01:25.9]} 2. d4 {[%clk 0:02:57.9]}
2... d5 {[%clk 0:01:25.8]} 3. Nc3 {[%clk 0:02:57.9]} 3... dxe4 {[%clk
0:01:25.7]} 4. Nxe4 {[%clk 0:02:58.8]} 4... Bf5 {[%clk 0:01:25.6]} 5. Ng3 {[%clk
0:02:58.7]} 5... Bg6 {[%clk 0:01:26]} 6. Nf3 {[%clk 0:02:59.4]} 6... Nd7 {[%clk
0:01:24.8]} 7. Bd3 {[%clk 0:02:59.9]} 7... Bxd3 {[%clk 0:01:23.1]} 8. Qxd3
{[%clk 0:03:00.8]} 8... e6 {[%clk 0:01:22.6]} 9. O-O {[%clk 0:03:00.8]} 9...
Ngf6 {[%clk 0:01:22.7]} 10. Re1 {[%clk 0:03:00.9]} 10... Bd6 {[%clk 0:01:22.6]}
11. Nf5 {[%clk 0:02:59.8]} 11... Bf8 {[%clk 0:01:16.2]} 12. Bf4 {[%clk
0:02:58.9]} 12... Qb6 {[%clk 0:01:14.6]} 13. Nd6+ {[%clk 0:02:57.7]} 13... Bxd6
{[%clk 0:01:13.6]} 14. Bxd6 {[%clk 0:02:58.6]} 14... Qb5 {[%clk 0:01:13.4]} 15.
c4 {[%clk 0:02:57.8]} 15... Qa6 {[%clk 0:01:11]} 16. b4 {[%clk 0:02:49.7]} 16...
O-O-O {[%clk 0:01:09.7]} 17. b5 {[%clk 0:02:47.9]} 17... Qa4 {[%clk 0:01:09.7]}
18. bxc6 {[%clk 0:02:47]} 18... Qxc6 {[%clk 0:01:09.3]} 19. c5 {[%clk
0:02:45.6]} 19... h5 {[%clk 0:00:54.7]} 20. Ne5 {[%clk 0:02:37.5]} 20... Nxe5
{[%clk 0:00:52.1]} 21. dxe5 {[%clk 0:02:37.6]} 21... Ng4 {[%clk 0:00:48]} 22.
Qa3 {[%clk 0:02:29.1]} 22... Qa6 {[%clk 0:00:44.3]} 23. Qxa6 {[%clk 0:02:17.2]}
23... bxa6 {[%clk 0:00:44]} 24. c6 {[%clk 0:02:17.2]} 24... f5 {[%clk
0:00:41.9]} 25. Rab1 {[%clk 0:02:16.8]} 1-0

[Event "*** Titled Tuesday Blitz"]
[Site "Chess.com"]
[Date "2021.03.02"]
[Round "10"]
[White "Gabrielian_Artur"]
[Black "rquery98"]
[Result "1-0"]
[WhiteElo "2802"]
[BlackElo "2648"]
[TimeControl "180+1"]
[EndTime "11:55:26 PST"]
[Termination "Gabrielian_Artur won by resignation"]

1. e4 {[%clk 0:03:00.9]} 1... e5 {[%clk 0:02:59.9]} 2. Nc3 {[%clk 0:03:00.7]}
2... Nf6 {[%clk 0:02:59.6]} 3. g3 {[%clk 0:03:00.9]} 3... Bc5 {[%clk 0:02:50.7]}
4. Bg2 {[%clk 0:03:00.8]} 4... O-O {[%clk 0:02:51.2]} 5. Nge2 {[%clk 0:03:00.7]}
5... Nc6 {[%clk 0:02:52]} 6. O-O {[%clk 0:03:00.4]} 6... d6 {[%clk 0:02:49.1]}
7. Na4 {[%clk 0:02:59.3]} 7... a6 {[%clk 0:02:48.7]} 8. Nxc5 {[%clk 0:02:59.1]}
8... dxc5 {[%clk 0:02:49.6]} 9. d3 {[%clk 0:02:58.7]} 9... Re8 {[%clk
0:02:45.8]} 10. h3 {[%clk 0:02:58.6]} 10... Nd7 {[%clk 0:02:45.2]} 11. f4 {[%clk
0:02:57.7]} 11... Nf8 {[%clk 0:02:44.4]} 12. f5 {[%clk 0:02:51.6]} 12... Nd4
{[%clk 0:02:43]} 13. c3 {[%clk 0:02:41.3]} 13... Nc6 {[%clk 0:02:34.2]} 14. f6
{[%clk 0:02:37.2]} 14... g6 {[%clk 0:02:34.2]} 15. Be3 {[%clk 0:02:31.7]} 15...
Qd6 {[%clk 0:02:34.2]} 16. Qd2 {[%clk 0:02:30.5]} 16... Rd8 {[%clk 0:02:31.5]}
17. Rad1 {[%clk 0:02:29.9]} 17... Ne6 {[%clk 0:02:27.4]} 18. g4 {[%clk
0:02:24.5]} 18... b6 {[%clk 0:02:24.5]} 19. Ng3 {[%clk 0:02:24.3]} 19... Nf4
{[%clk 0:01:53.5]} 20. Bxf4 {[%clk 0:02:22.1]} 20... exf4 {[%clk 0:01:54.4]} 21.
Rxf4 {[%clk 0:02:18.3]} 21... Be6 {[%clk 0:01:51.6]} 22. Kh2 {[%clk 0:02:13.9]}
22... Bxa2 {[%clk 0:01:40.9]} 23. e5 {[%clk 0:01:59.6]} 23... Qe6 {[%clk
0:01:31.8]} 24. Bxc6 {[%clk 0:01:54.6]} 24... Qxc6 {[%clk 0:01:29.7]} 25. Rf2
{[%clk 0:01:36.3]} 25... Bb3 {[%clk 0:01:21.2]} 26. Qh6 {[%clk 0:01:33.7]} 1-0